fUST/lending_fUST_20240813
["ID","MTS","AMOUNT","RATE_DAILY","PERIOD"]
[334774753,1723547446008,-500.0,0.00013698,2]
[334774754,1723547446018,-542.21,0.00013698,2]
[334774755,1723547446027,-539.61198456,0.00013698,2]
[334774756,1723547446036,-500.0,0.00013698,2]
[334774757,1723547446045,-492.82389326,0.00013698,2]
[334774758,1723547446055,-501.68738157,0.00013698,2]
[334774759,1723547446065,-500.0,0.00013698,2]
[334774760,1723547446074,-151.0,0.00013698,2]
[334774761,1723547446084,-151.0,0.00013698,2]
[334774762,1723547446094,-151.0,0.00013698,2]
[334774763,1723547446103,-151.0,0.00013698,2]
[334774764,1723547446114,-151.0,0.00013698,2]
[334774765,1723547446126,-151.0,0.00013698,2]
[334774766,1723547446135,-184.630891,0.00013698,2]
[334774767,1723547446145,-507.23024464,0.00013698,2]
[334774768,1723547446156,-500.0,0.00013698,2]
[334774769,1723547446167,-500.0,0.00013698,2]
[334774770,1723547446176,-500.0,0.00013698,2]
[334774771,1723547446187,-453.00711863,0.00013698,2]
[334774772,1723547446197,-500.0,0.00013698,2]
[334774773,1723547446206,-502.96860766,0.00013698,2]
[334774774,1723547446216,-500.0,0.00013698,2]
[334774776,1723547446228,-500.0,0.00013698,2]
[334774777,1723547446242,-500.0,0.00013698,2]
[334774778,1723547446252,-503.69358324,0.00013698,2]
[334774780,1723547446262,-504.18759248,0.00013698,2]
[334774781,1723547446272,-500.0,0.00013698,2]
[334774783,1723547446281,-327.2198573,0.00013698,2]
[334774784,1723547446291,-387.24154549,0.00013698,2]
[334774786,1723547446301,-500.0,0.00013698,2]
[334774788,1723547446311,-500.0,0.00013698,2]
[334774790,1723547446321,-503.59029948,0.00013698,2]
[334774792,1723547446332,-442.59706221,0.00013698,2]
[334774794,1723547446343,-795.11,0.00013698,2]
[334774795,1723547446354,-500.0,0.00013698,2]
[334774796,1723547446364,-504.48336683,0.00013698,2]
[334774797,1723547446375,-500.00000001,0.00013698,2]
[334774798,1723547446389,-501.37628776,0.00013698,2]
[334774799,1723547446400,-509.30063614,0.00013698,2]
[334774800,1723547446410,-500.0,0.00013698,2]
[334774801,1723547446421,-500.0,0.00013698,2]
[334774802,1723547446434,-500.0,0.00013698,2]
[334774803,1723547446444,-501.45057238,0.00013698,2]
[334774804,1723547446454,-505.81458611,0.00013698,2]
[334774805,1723547446467,-500.0,0.00013698,2]
[334774806,1723547446477,-500.0,0.00013698,2]
[334774807,1723547446490,-502.02979669,0.00013698,2]
[334774808,1723547446499,-502.53330438,0.00013698,2]
[334774809,1723547446508,-205.60716256,0.00013698,2]
[334774810,1723547446518,-500.0,0.00013698,2]
[334774811,1723547446527,-500.0,0.00013698,2]
[334774812,1723547446536,-500.0,0.00013698,2]
[334774813,1723547446546,-500.0,0.00013698,2]
[334774814,1723547446555,-504.02452338,0.00013698,2]
[334774815,1723547446564,-500.0,0.00013698,2]
[334774816,1723547446573,-501.14588562,0.00013698,2]
[334774817,1723547446582,-500.41746684,0.00013698,2]
[334774818,1723547446591,-502.18574441,0.00013698,2]
[334774819,1723547446600,-500.0,0.00013698,2]
[334774820,1723547446610,-151.0,0.00013698,2]
[334774821,1723547446619,-151.0,0.00013698,2]
[334774822,1723547446628,-500.0,0.00013698,2]
[334774823,1723547446637,-592.56,0.00013698,2]
[334774824,1723547446647,-500.0,0.00013698,2]
[334774825,1723547446656,-561.84,0.00013698,2]
[334774826,1723547446666,-503.33157854,0.00013698,2]
[334774827,1723547446675,-507.05239135,0.00013698,2]
[334774828,1723547446684,-1236.77,0.00013698,2]
[334774829,1723547446693,-500.0,0.00013698,2]
[334774830,1723547446702,-500.0,0.00013698,2]
[334774831,1723547446712,-500.0,0.00013698,2]
[334774832,1723547446721,-500.0,0.00013698,2]
[334774833,1723547446730,-500.0,0.00013698,2]
[334774834,1723547446740,-500.0,0.00013698,2]
[334774835,1723547446750,-500.0,0.00013698,2]
[334774836,1723547446762,-500.80143685,0.00013698,2]
[334774837,1723547446772,-508.13991064,0.00013698,2]
[334774838,1723547446781,-506.55540525,0.00013698,2]
[334774839,1723547446790,-500.0,0.00013698,2]
[334774840,1723547446799,-500.0,0.00013698,2]
[334774841,1723547446808,-512.12221757,0.00013698,2]
[334774842,1723547446817,-472.37504085,0.00013698,2]
[334774843,1723547446827,-505.42697462,0.00013698,2]
[334774844,1723547446837,-500.0,0.00013698,2]
[334774845,1723547446846,-500.0,0.00013698,2]
[334774846,1723547446856,-500.0,0.00013698,2]
[334774847,1723547446866,-500.0,0.00013698,2]
[334774848,1723547446877,-500.0,0.00013698,2]
[334774849,1723547446885,-500.0,0.00013698,2]
[334774850,1723547446894,-509.34772993,0.00013698,2]
[334774851,1723547446904,-507.13052992,0.00013698,2]
[334774852,1723547446914,-1777.12,0.00013698,2]
[334774853,1723547446924,-522.86595952,0.00013698,2]
[334774854,1723547446935,-500.0,0.00013698,2]
[334774855,1723547446944,-504.52624612,0.00013698,2]
[334774856,1723547446954,-500.0,0.00013698,2]
[334774857,1723547446965,-500.0,0.00013698,2]
[334774858,1723547446974,-502.93585482,0.00013698,2]
[334774859,1723547446985,-500.0,0.00013698,2]
[334774860,1723547446998,-500.0,0.00013698,2]
[334774861,1723547447008,-500.0,0.00013698,2]
[334774862,1723547447018,-500.0,0.00013698,2]
[334774863,1723547447029,-507.5474858,0.00013698,2]
[334774864,1723547447040,-287.710473,0.00013698,2]
[334774865,1723547447049,-287.710473,0.00013698,2]
[334774866,1723547447060,-287.710473,0.00013698,2]
[334774867,1723547447070,-503.78290479,0.00013698,2]
[334774868,1723547447081,-287.710473,0.00013698,2]
[334774869,1723547447092,-287.710473,0.00013698,2]
[334774870,1723547447103,-501.87082824,0.00013698,2]
[334774871,1723547447114,-287.710473,0.00013698,2]
[334774872,1723547447125,-287.710473,0.00013698,2]
[334774873,1723547447136,-287.710473,0.00013698,2]
[334774874,1723547447147,-507.20011329,0.00013698,2]
[334774875,1723547447159,-287.710473,0.00013698,2]
[334774876,1723547447170,-287.710473,0.00013698,2]
[334774877,1723547447179,-287.710473,0.00013698,2]
[334774878,1723547447188,-287.710473,0.00013698,2]
[334774879,1723547447197,-287.710473,0.00013698,2]
[334774880,1723547447208,-287.710473,0.00013698,2]
[334774881,1723547447218,-505.71208401,0.00013698,2]
[334774882,1723547447228,-287.710473,0.00013698,2]
[334774883,1723547447243,-287.710467,0.00013698,2]
[334774884,1723547447253,-500.0,0.00013698,2]
[334774885,1723547447263,-500.0,0.00013698,2]
[334774886,1723547447272,-500.0,0.00013698,2]
[334774887,1723547447282,-500.0,0.00013698,2]
[334774888,1723547447291,-151.0,0.00013698,2]
[334774889,1723547447301,-507.08564728,0.00013698,2]
[334774890,1723547447310,-151.0,0.00013698,2]
[334774891,1723547447320,-505.36064693,0.00013698,2]
[334774892,1723547447329,-151.0,0.00013698,2]
[334774893,1723547447338,-151.0,0.00013698,2]
[334774894,1723547447348,-500.0,0.00013698,2]
[334774895,1723547447357,-151.0,0.00013698,2]
[334774896,1723547447366,-151.0,0.00013698,2]
[334774897,1723547447376,-509.67446597,0.00013698,2]
[334774898,1723547447389,-151.0,0.00013698,2]
[334774899,1723547447399,-151.0,0.00013698,2]
[334774900,1723547447408,-510.35696564,0.00013698,2]
[334774901,1723547447417,-500.0,0.00013698,2]
[334774902,1723547447427,-456.58200291,0.00013698,2]
[334774903,1723547447438,-500.0,0.00013698,2]
[334774904,1723547447447,-495.25153772,0.00013698,2]
[334774905,1723547447457,-502.4300017,0.00013698,2]
[334774906,1723547447467,-500.0,0.00013698,2]
[334774907,1723547447476,-501.41158025,0.00013698,2]
[334774908,1723547447489,-505.60728801,0.00013698,2]
[334774909,1723547447501,-518.15476045,0.00013698,2]
[334774910,1723547447510,-500.0,0.00013698,2]
[334774911,1723547447520,-508.02086793,0.00013698,2]
[334774912,1723547447529,-500.0,0.00013698,2]
[334774913,1723547447539,-503.88429814,0.00013698,2]
[334774914,1723547447548,-500.0,0.00013698,2]
[334774915,1723547447559,-500.0,0.00013698,2]
[334774916,1723547447568,-500.0,0.00013698,2]
[334774917,1723547447577,-609.17613278,0.00013698,2]
[334774918,1723547447587,-500.0,0.00013698,2]
[334774919,1723547447597,-508.42683788,0.00013698,2]
[334774920,1723547447606,-500.0,0.00013698,2]
[334774921,1723547447615,-500.0,0.00013698,2]
[334774922,1723547447625,-405.5421487,0.00013698,2]
[334774923,1723547447635,-502.31401291,0.00013698,2]
[334774924,1723547447644,-500.0,0.00013698,2]
[334774925,1723547447653,-502.67557011,0.00013698,2]
[334774926,1723547447662,-583.29,0.00013698,2]
[334774927,1723547447671,-512.89114188,0.00013698,2]
[334774928,1723547447680,-505.3329705,0.00013698,2]
[334774929,1723547447690,-500.0,0.00013698,2]
[334774930,1723547447699,-500.0,0.00013698,2]
[334774931,1723547447709,-510.62,0.00013698,2]
[334774932,1723547447717,-508.85357317,0.00013698,2]
[334774933,1723547447727,-500.0,0.00013698,2]
[334774934,1723547447737,-500.0,0.00013698,2]
[334774935,1723547447746,-507.52193362,0.00013698,2]
[334774936,1723547447755,-500.0,0.00013698,2]
[334774937,1723547447765,-500.0,0.00013698,2]
[334774938,1723547447774,-507.86272351,0.00013698,2]
[334774939,1723547447784,-500.0,0.00013698,2]
[334774940,1723547447793,-500.0,0.00013698,2]
[334774941,1723547447802,-279.79440107,0.00013698,2]
[334774942,1723547447811,-500.0,0.00013698,2]
[334774943,1723547447821,-500.0,0.00013698,2]
[334774944,1723547447830,-500.0,0.00013698,2]
[334774945,1723547447839,-500.0,0.00013698,2]
[334774946,1723547447849,-500.0,0.00013698,2]
[334774947,1723547447858,-500.0,0.00013698,2]
[334774948,1723547447867,-500.0,0.00013698,2]
[334774949,1723547447877,-500.0,0.00013698,2]
[334774950,1723547447886,-278.20551426,0.00013698,2]
[334774951,1723547447896,-300.00000001,0.00013698,2]
[334774952,1723547447905,-500.0,0.00013698,2]
[334774953,1723547447914,-500.0,0.00013698,2]
[334774954,1723547447925,-500.0,0.00013698,2]
[334774955,1723547447935,-500.0,0.00013698,2]
[334774956,1723547447945,-500.0,0.00013698,2]
[334774957,1723547447956,-561.9,0.00013698,2]
[334774958,1723547447966,-500.0,0.00013698,2]
[334774959,1723547447976,-500.0,0.00013698,2]
[334774960,1723547447987,-285.59539038,0.00013698,2]
[334774961,1723547447996,-500.0,0.00013698,2]
[334774962,1723547448005,-502.07385119,0.00013698,2]
[334774963,1723547448015,-509.39277566,0.00013698,2]
[334774964,1723547448024,-500.0,0.00013698,2]
[334774965,1723547448034,-500.0,0.00013698,2]
[334774966,1723547448044,-224.96456749,0.00013698,2]
[334774967,1723547448053,-500.0,0.00013698,2]
[334774968,1723547448063,-500.0,0.00013698,2]
[334774969,1723547448073,-500.0,0.00013698,2]
[334774970,1723547448082,-516.59155626,0.00013698,2]
[334774971,1723547448091,-500.0,0.00013698,2]
[334774972,1723547448101,-500.0,0.00013698,2]
[334774973,1723547448110,-508.7932602,0.00013698,2]
[334774974,1723547448120,-500.0,0.00013698,2]
[334774975,1723547448129,-504.47854233,0.00013698,2]
[334774976,1723547448139,-151.0,0.00013698,2]
[334774977,1723547448149,-503.23853271,0.00013698,2]
[334774978,1723547448159,-151.0,0.00013698,2]
[334774979,1723547448168,-151.0,0.00013698,2]
[334774980,1723547448178,-151.0,0.00013698,2]
[334774981,1723547448187,-156.77381,0.00013698,2]
[334774982,1723547448197,-500.0,0.00013698,2]
[334774983,1723547448206,-500.0,0.00013698,2]
[334774984,1723547448215,-511.83291939,0.00013698,2]
[334774985,1723547448225,-503.26821161,0.00013698,2]
[334774986,1723547448235,-500.0,0.00013698,2]
[334774987,1723547448245,-508.09120015,0.00013698,2]
[334774988,1723547448254,-500.0,0.00013698,2]
[334774989,1723547448383,-507.8846365,0.00013698,2]
[334774990,1723547448400,-508.62666402,0.00013698,2]
[334774991,1723547448409,-500.0,0.00013698,2]
[334774992,1723547448420,-500.0,0.00013698,2]
[334774993,1723547448431,-815.97,0.00013698,2]
[334774994,1723547448441,-500.0,0.00013698,2]
[334774995,1723547448451,-500.0,0.00013698,2]
[334774996,1723547448462,-500.0,0.00013698,2]
[334774997,1723547448474,-500.0,0.00013698,2]
[334774998,1723547448486,-500.0,0.00013698,2]
[334774999,1723547448496,-500.0,0.00013698,2]
[334775000,1723547448506,-244.40232907,0.00013698,2]
[334775001,1723547448516,-500.0,0.00013698,2]
[334775002,1723547448526,-501.15084829,0.00013698,2]
[334775003,1723547448536,-500.0,0.00013698,2]
[334775004,1723547448547,-506.83914294,0.00013698,2]
[334775005,1723547448558,-502.39048227,0.00013698,2]
[334775006,1723547448568,-500.0,0.00013698,2]
[334775007,1723547448578,-517.91119328,0.00013698,2]
[334775008,1723547448588,-500.0,0.00013698,2]
[334775009,1723547448598,-500.0,0.00013698,2]
[334775010,1723547448608,-500.0,0.00013698,2]
[334775011,1723547448618,-509.21483951,0.00013698,2]
[334775012,1723547448628,-500.0,0.00013698,2]
[334775013,1723547448638,-500.0,0.00013698,2]
[334775014,1723547448649,-500.0,0.00013698,2]
[334775015,1723547448659,-391.1527186,0.00013698,2]
[334775016,1723547448668,-500.0,0.00013698,2]
[334775017,1723547448677,-728.09,0.00013698,2]
[334775018,1723547448686,-500.0,0.00013698,2]
[334775019,1723547448696,-417.34554894,0.00013698,2]
[334775020,1723547448706,-509.27942967,0.00013698,2]
[334775021,1723547448716,-515.6222114,0.00013698,2]
[334775022,1723547448726,-500.0,0.00013698,2]
[334775023,1723547448736,-501.3757287,0.00013698,2]
[334775024,1723547448745,-500.0,0.00013698,2]
[334775025,1723547448754,-500.0,0.00013698,2]
[334775026,1723547448764,-500.0,0.00013698,2]
[334775027,1723547448774,-500.0,0.00013698,2]
[334775028,1723547448783,-500.0,0.00013698,2]
[334775029,1723547448794,-500.0,0.00013698,2]
[334775030,1723547448804,-500.0,0.00013698,2]
[334775031,1723547448814,-500.0,0.00013698,2]
[334775032,1723547448824,-500.0,0.00013698,2]
[334775033,1723547448834,-500.0,0.00013698,2]
[334775034,1723547448846,-500.0,0.00013698,2]
[334775035,1723547448857,-500.0,0.00013698,2]
[334775036,1723547448868,-500.0,0.00013698,2]
[334775037,1723547448878,-500.0,0.00013698,2]
[334775038,1723547448889,-502.33741563,0.00013698,2]
[334775039,1723547448900,-500.0,0.00013698,2]
[334775040,1723547448911,-500.0,0.00013698,2]
[334775041,1723547448922,-504.47820726,0.00013698,2]
[334775042,1723547448932,-527.642996,0.00013698,2]
[334775043,1723547448942,-527.642987,0.00013698,2]
[334775044,1723547448952,-504.91032273,0.00013698,2]
[334775045,1723547448962,-640.682161,0.00013698,2]
[334775046,1723547448972,-640.682161,0.00013698,2]
[334775047,1723547448981,-514.14392242,0.00013698,2]
[334775048,1723547448991,-640.682161,0.00013698,2]
[334775049,1723547449001,-640.682161,0.00013698,2]
[334775050,1723547449011,-500.0,0.00013698,2]
[334775051,1723547449021,-640.682161,0.00013698,2]
[334775052,1723547449031,-640.682161,0.00013698,2]
[334775053,1723547449041,-640.682161,0.00013698,2]
[334775054,1723547449051,-640.68216524,0.00013698,2]
[334775055,1723547449062,-500.0,0.00013698,2]
[334775056,1723547449072,-503.23260538,0.00013698,2]
[334775057,1723547449082,-500.0,0.00013698,2]
[334775058,1723547449092,-500.0,0.00013698,2]
[334775059,1723547449102,-632.68876494,0.00013698,2]
[334775060,1723547449112,-504.97025095,0.00013698,2]
[334775061,1723547449123,-654.27,0.00013698,2]
[334775062,1723547449133,-500.0,0.00013698,2]
[334775063,1723547449143,-506.87032051,0.00013698,2]
[334775064,1723547449153,-500.0,0.00013698,2]
[334775065,1723547449163,-502.172012,0.00013698,2]
[334775066,1723547449173,-502.172012,0.00013698,2]
[334775067,1723547449183,-502.172012,0.00013698,2]
[334775068,1723547449194,-502.172012,0.00013698,2]
[334775069,1723547449207,-564.58,0.00013698,2]
[334775070,1723547449218,-500.0,0.00013698,2]
[334775071,1723547449228,-502.172012,0.00013698,2]
[334775072,1723547449238,-502.172012,0.00013698,2]
[334775073,1723547449249,-502.172012,0.00013698,2]
[334775074,1723547449259,-502.172005,0.00013698,2]
[334775075,1723547449271,-500.72057933,0.00013698,2]
[334775076,1723547449281,-500.0,0.00013698,2]
[334775077,1723547449291,-500.0,0.00013698,2]
[334775078,1723547449302,-499.12860952,0.00013698,2]
[334775079,1723547449312,-504.75377848,0.00013698,2]
[334775080,1723547449323,-503.55,0.00013698,2]
[334775081,1723547449333,-500.0,0.00013698,2]
[334775082,1723547449343,-506.22603401,0.00013698,2]
[334775083,1723547449353,-500.0,0.00013698,2]
[334775084,1723547449364,-816.27,0.00013698,2]
[334775085,1723547449375,-507.19580789,0.00013698,2]
[334775086,1723547449387,-561.2518857,0.00013698,2]
[334775087,1723547449396,-151.0,0.00013698,2]
[334775088,1723547449406,-151.0,0.00013698,2]
[334775089,1723547449415,-620.20536172,0.00013698,2]
[334775090,1723547449426,-284.405315,0.00013698,2]
[334775091,1723547449436,-4580.34,0.00013698,2]
[334775092,1723547449445,-500.0,0.00013698,2]
[334775093,1723547449455,-500.0,0.00013698,2]
[334775094,1723547449468,-511.14859023,0.00013698,2]
[334775095,1723547449478,-4580.34,0.00013698,2]
[334775096,1723547449488,-500.0,0.00013698,2]
[334775097,1723547449499,-4580.34,0.00013698,2]
[334775098,1723547449509,-4580.34,0.00013698,2]
[334775099,1723547449518,-4580.34,0.00013698,2]
[334775100,1723547449529,-4580.34,0.00013698,2]
[334775101,1723547449540,-4580.34,0.00013698,2]
[334775102,1723547449549,-4580.34,0.00013698,2]
[334775103,1723547449559,-500.0,0.00013698,2]
[334775104,1723547449569,-4580.34,0.00013698,2]
[334775105,1723547449579,-4580.34,0.00013698,2]
[334775106,1723547449589,-4580.34,0.00013698,2]
[334775107,1723547449599,-4580.34,0.00013698,2]
[334775108,1723547449608,-4580.34,0.00013698,2]
[334775109,1723547449618,-714.56,0.00013698,2]
[334775110,1723547449627,-4580.34,0.00013698,2]
[334775111,1723547449637,-4580.34,0.00013698,2]
[334775112,1723547449646,-771.75,0.00013698,2]
[334775113,1723547449656,-4580.34,0.00013698,2]
[334775114,1723547449665,-1407.2,0.00013698,2]
[334775115,1723547449675,-4580.34,0.00013698,2]
[334775116,1723547449685,-4580.34,0.00013698,2]
[334775117,1723547449696,-4580.34,0.00013698,2]
[334775118,1723547449706,-500.0,0.00013698,2]
[334775119,1723547449716,-4580.34,0.00013698,2]
[334775120,1723547449729,-4580.34,0.00013698,2]
[334775121,1723547449741,-4580.34,0.00013698,2]
[334775122,1723547449750,-4580.34,0.00013698,2]
[334775123,1723547449761,-500.0,0.00013698,2]
[334775124,1723547449771,-4580.36527331,0.00013698,2]
[334775125,1723547449781,-506.75545438,0.00013698,2]
[334775126,1723547449791,-500.0,0.00013698,2]
[334775127,1723547449802,-1040.88,0.00013698,2]
[334775128,1723547449814,-500.0,0.00013698,2]
[334775129,1723547449825,-473.199744,0.00013698,2]
[334775130,1723547449835,-500.0,0.00013698,2]
[334775131,1723547449846,-473.199744,0.00013698,2]
[334775132,1723547449856,-473.199744,0.00013698,2]
[334775133,1723547449867,-473.199744,0.00013698,2]
[334775134,1723547449878,-509.45464959,0.00013698,2]
[334775135,1723547449888,-473.199744,0.00013698,2]
[334775136,1723547449899,-500.0,0.00013698,2]
[334775137,1723547449909,-473.199744,0.00013698,2]
[334775138,1723547449920,-1535.13,0.00013698,2]
[334775139,1723547449932,-473.199744,0.00013698,2]
[334775140,1723547449942,-473.199746,0.00013698,2]
[334775141,1723547449953,-500.0,0.00013698,2]
[334775142,1723547449964,-504.55040292,0.00013698,2]
[334775143,1723547449975,-500.0,0.00013698,2]
[334775144,1723547449985,-500.0,0.00013698,2]
[334775145,1723547449995,-265.46011984,0.00013698,2]
[334775146,1723547450005,-500.0,0.00013698,2]
[334775147,1723547450017,-508.4712836,0.00013698,2]
[334775148,1723547450027,-786.688587,0.00013698,2]
[334775149,1723547450037,-786.688587,0.00013698,2]
[334775150,1723547450048,-740.2,0.00013698,2]
[334775151,1723547450057,-786.688587,0.00013698,2]
[334775152,1723547450067,-786.688587,0.00013698,2]
[334775153,1723547450077,-500.0,0.00013698,2]
[334775154,1723547450087,-786.688587,0.00013698,2]
[334775155,1723547450097,-786.688587,0.00013698,2]
[334775156,1723547450107,-504.38063046,0.00013698,2]
[334775157,1723547450118,-786.688587,0.00013698,2]
[334775158,1723547450129,-786.688586,0.00013698,2]
[334775159,1723547450138,-512.66756479,0.00013698,2]
[334775160,1723547450148,-1924.1,0.00013698,2]
[334775161,1723547450158,-510.26957456,0.00013698,2]
[334775162,1723547450169,-500.0,0.00013698,2]
[334775163,1723547450179,-500.0,0.00013698,2]
[334775164,1723547450188,-1430.92,0.00013698,2]
[334775165,1723547450198,-2798.75,0.00013698,2]
[334775166,1723547450208,-500.0,0.00013698,2]
[334775167,1723547450218,-500.0,0.00013698,2]
[334775168,1723547450229,-770.1,0.00013698,2]
[334775169,1723547450240,-330.009889,0.00013698,2]
[334775170,1723547450249,-330.009889,0.00013698,2]
[334775171,1723547450259,-330.009889,0.00013698,2]
[334775172,1723547450268,-330.009889,0.00013698,2]
[334775173,1723547450278,-500.0,0.00013698,2]
[334775174,1723547450287,-330.009889,0.00013698,2]
[334775175,1723547450297,-330.009889,0.00013698,2]
[334775176,1723547450307,-330.009889,0.00013698,2]
[334775177,1723547450317,-504.60165406,0.00013698,2]
[334775178,1723547450326,-330.009897,0.00013698,2]
[334775179,1723547450336,-500.0,0.00013698,2]
[334775180,1723547450348,-889.26,0.00013698,2]
[334775181,1723547450360,-504.0,0.00013698,2]
[334775182,1723547450370,-6751.45,0.00013698,2]
[334775183,1723547450380,-249.179601,0.00013698,2]
[334775184,1723547450392,-249.179601,0.00013698,2]
[334775185,1723547450402,-249.179601,0.00013698,2]
[334775186,1723547450412,-249.179601,0.00013698,2]
[334775187,1723547450421,-833.02,0.00013698,2]
[334775188,1723547450430,-249.179601,0.00013698,2]
[334775189,1723547450442,-500.0,0.00013698,2]
[334775190,1723547450452,-249.179601,0.00013698,2]
[334775191,1723547450461,-249.179601,0.00013698,2]
[334775192,1723547450470,-249.179601,0.00013698,2]
[334775193,1723547450481,-784.34,0.00013698,2]
[334775194,1723547450491,-500.0,0.00013698,2]
[334775195,1723547450501,-509.99697858,0.00013698,2]
[334775196,1723547450510,-500.0,0.00013698,2]
[334775197,1723547450520,-1167.77,0.00013698,2]
[334775198,1723547450529,-500.0,0.00013698,2]
[334775199,1723547450539,-500.0,0.00013698,2]
[334775200,1723547450548,-500.0,0.00013698,2]
[334775201,1723547450558,-2093.42,0.00013698,2]
[334775202,1723547450567,-500.0,0.00013698,2]
[334775203,1723547450576,-500.0,0.00013698,2]
[334775204,1723547450586,-1167.297545,0.00013698,2]
[334775205,1723547450596,-1167.297545,0.00013698,2]
[334775206,1723547450606,-500.0,0.00013698,2]
[334775207,1723547450616,-1167.297545,0.00013698,2]
[334775208,1723547450626,-1167.297545,0.00013698,2]
[334775209,1723547450636,-763.49,0.00013698,2]
[334775210,1723547450646,-500.0,0.00013698,2]
[334775211,1723547450655,-500.0,0.00013698,2]
[334775212,1723547450665,-1167.297545,0.00013698,2]
[334775213,1723547450674,-1167.297545,0.00013698,2]
[334775214,1723547450684,-1167.297545,0.00013698,2]
[334775215,1723547450693,-1167.297541,0.00013698,2]
[334775216,1723547450703,-500.0,0.00013698,2]
[334775217,1723547450713,-500.0,0.00013698,2]
[334775218,1723547450723,-500.0,0.00013698,2]
[334775219,1723547450733,-500.0,0.00013698,2]
[334775220,1723547450743,-527.14743389,0.00013698,2]
[334775221,1723547450752,-505.56303483,0.00013698,2]
[334775222,1723547450761,-500.0,0.00013698,2]
[334775223,1723547450771,-1023.0,0.00013698,2]
[334775224,1723547450780,-500.0,0.00013698,2]
[334775225,1723547450789,-500.0,0.00013698,2]
[334775226,1723547450800,-500.0,0.00013698,2]
[334775227,1723547450810,-500.0,0.00013698,2]
[334775228,1723547450819,-909.2,0.00013698,2]
[334775229,1723547450829,-1084.41,0.00013698,2]
[334775230,1723547450838,-1124.92,0.00013698,2]
[334775231,1723547450848,-500.0,0.00013698,2]
[334775232,1723547450857,-190.778351,0.00013698,2]
[334775233,1723547450867,-190.778351,0.00013698,2]
[334775234,1723547450910,-511.955389,0.00013698,2]
[334775235,1723547450919,-190.778351,0.00013698,2]
[334775236,1723547450928,-511.955389,0.00013698,2]
[334775237,1723547450937,-190.778351,0.00013698,2]
[334775238,1723547450947,-511.955389,0.00013698,2]
[334775239,1723547450956,-511.955389,0.00013698,2]
[334775240,1723547450966,-844.3,0.00013698,2]
[334775241,1723547450975,-190.778351,0.00013698,2]
[334775242,1723547450986,-190.778351,0.00013698,2]
[334775243,1723547451000,-511.955389,0.00013698,2]
[334775244,1723547451010,-190.778351,0.00013698,2]
[334775245,1723547451020,-190.77836,0.00013698,2]
[334775246,1723547451030,-511.955389,0.00013698,2]
[334775247,1723547451039,-500.0,0.00013698,2]
[334775248,1723547451049,-511.955389,0.00013698,2]
[334775249,1723547451058,-511.955395,0.00013698,2]
[334775250,1723547451068,-500.0,0.00013698,2]
[334775251,1723547451078,-500.0,0.00013698,2]
[334775252,1723547451088,-540.34874411,0.00013698,2]
[334775253,1723547451097,-507.79661399,0.00013698,2]
[334775254,1723547451108,-500.0,0.00013698,2]
[334775255,1723547451118,-500.0,0.00013698,2]
[334775256,1723547451127,-4591.46,0.00013698,2]
[334775257,1723547451137,-1177.25,0.00013698,2]
[334775258,1723547451147,-1574.28,0.00013698,2]
[334775259,1723547451158,-500.0,0.00013698,2]
[334775260,1723547451168,-921.99,0.00013698,2]